Cogmind - Beta 16 @@@ ROGUE MODE // 2025.11.23 @ 19:35:38 Player: Mozco Result: Self-destructed Performance ------------- Evolutions (6) 3000 Regions Visited (25) 5000 Robots Destroyed (401) 2005 Value Destroyed (15806) 15806 Prototype IDs (70) 1400 Alien Tech Used (0) 0 Bonus (7142) 7142 TOTAL SCORE: 34353 Bonus ------- High Alert Combat Kills 4296 Follower Combat Kills 3411 Network Hubs Disabled 200 Aligned with FarCom 300 Met Data Miner 300 Built Enhanced Grunts 300 A7 Reached Mainframe 300 Met R17 at Cetus 500 Friendly Fire -2465 Cogmind --------- Core Integrity 644/1150 Matter 88/300 Energy 0/100 System Corruption 4% Temperature Cool (0) Movement Treading (160) Location -4/Factory Parts ------- > --- POWER (2) -------- (None) > --- PROPULSION (5) --- Improved Treads Centrium Heavy Treads Centrium Heavy Treads > --- UTILITY (8) ------ Experimental Heat Sink Huge Storage Unit Advanced Sensor Array Experimental Signal Interpreter Experimental Targeting Computer Improved Medium Armor Plating Experimental Shield Generator > --- WEAPON (4) ------- Phase Gun Advanced Variable Charge Gun Improved Proton Missile Launcher > --- INVENTORY (25) --- Improved Treads Medium Treads Heavy Treads Centrium Heavy Treads Advanced Cooling System Improved Matter Compressor (300) Advanced Particle Charger Advanced Particle Charger Advanced Transmission Jammer Advanced Cloaking Device Improved Weapon Shielding Improved Weapon Shielding Centrium Medium Armor Plating Experimental EM Shield Improved Force Field Hacking Drone Bay (1/1) EMDS Improved Matter Neutralizer Advanced KE Penetrator Hypervelocity Gauss Cannon Heavy Gauss Cannon Gamma Bomb Array Peak State ------------ > --- POWER ------------ Quantum Reactor Quantum Reactor > --- PROPULSION ------- Medium Treads Centrium Heavy Treads Centrium Heavy Treads > --- UTILITY ---------- Advanced Cooling System Huge Storage Unit Experimental Targeting Computer Experimental Phase Shifter Advanced Cloaking Device Improved Weapon Shielding Centrium Medium Armor Plating Experimental Shield Generator > --- WEAPON ----------- Advanced Variable Charge Gun Advanced Variable Charge Gun EMDS > --- INVENTORY -------- Quantum Reactor Centrium Heavy Treads Experimental Heat Sink Huge Storage Unit Improved Matter Compressor Advanced Particle Charger Improved Weapon Shielding Experimental EM Shield Advanced System Restoration Module Hacking Drone Bay Heavy Disruptor Cannon Neutron Cannon Improved Matter Neutralizer Improved Matter Neutralizer Hypervelocity Gauss Cannon Hypervelocity Gauss Cannon Gamma Bomb Array Fusion Bomb Launcher [Rating: 161] Favorites ----------- Power Antimatter Reactor Engine F-cell Engine Power Core Reinforced Fission Core Reactor Antimatter Reactor Propulsion Light Treads Treads Light Treads Utility Advanced Heat Sink Device Advanced Heat Sink Storage Huge Storage Unit Processor Experimental Target Analyzer Hackware Hacking Suite Protection Improved Medium Armor Plating Weapon Heavy Beamcaster Energy Gun Heavy Beamcaster Energy Cannon Improved Matter Neutralizer Ballistic Gun Light Assault Rifle Ballistic Cannon Hypervelocity Gauss Cannon Launcher Missile Launcher Special Weapon Enhanced Flamer Impact Weapon Impact Mace Piercing Weapon Enhanced Force Lance Special Melee Weapon Datajack Build | -11 -10 -10 -10 -9 -8 -7 -7 -7 -7 -7 -7 -6 -6 -6 -6 -6 -5 -5 -5 -5 -5 -5 -5 -5 -4 ------- Run | Yrd Mat Min Exi Min Mat Fac Was Fac Low Low Zio Pro Fac Low Low Dat Pro Fac Was Fac Ext Cet Arc Hub Fac Slots Evolved 12 | . . . . . 4 2 . . . . . . 2 . . . . 2 . . . . . . 2 Power 1 | . . . . . . . . . . . . . . . . . . . . . . . . . 1 Propulsion 3 | . . . . . 1 1 . . . . . . . . . . . 1 . . . . . . . Utility 6 | . . . . . 3 . . . . . . . 2 . . . . 1 . . . . . . . Weapon 2 | . . . . . . 1 . . . . . . . . . . . . . . . . . . 1 Parts Attached 215 | 6 2 3 . 3 18 1 9 11 4 3 3 . 30 5 5 . 4 11 14 10 8 5 11 19 30 Power 18 | 1 . 1 . . 2 . 1 1 . . . . 2 . . . 1 . 2 2 . . 1 3 1 Engine 6 | 1 . 1 . . 2 . . . . . . . 2 . . . . . . . . . . . . Core 3 | . . . . . . . . . . . . . . . . . 1 . . 2 . . . . . Reactor 9 | . . . . . . . 1 1 . . . . . . . . . . 2 . . . 1 3 1 Propulsion 40 | 2 . . . 1 5 1 2 2 1 . . . 7 1 1 . 1 2 3 . 2 2 2 . 5 Treads 40 | 2 . . . 1 5 1 2 2 1 . . . 7 1 1 . 1 2 3 . 2 2 2 . 5 Leg . | . . . . . . . . . . . . . . . . . . . . . . . . . . Wheel . | . . . . . . . . . . . . . . . . . . . . . . . . . . Hover . | . . . . . . . . . . . . . . . . . . . . . . . . . . Flight . | . . . . . . . . . . . . . . . . . . . . . . . . . . Utility 100 | 1 2 1 . 1 9 . 2 2 1 1 1 . 14 3 3 . 1 5 5 5 5 2 5 13 18 Device 57 | . 1 1 . . 4 . 2 . 1 1 . . 7 1 2 . 1 3 5 3 3 . 3 9 10 Storage 8 | 1 1 . . . . . . 1 . . . . 2 . . . . . . . . . . 1 2 Processor 10 | . . . . 1 . . . 1 . . 1 . 3 . . . . . . . . . . 1 3 Hackware 6 | . . . . . 2 . . . . . . . . . . . . 1 . 1 . . 1 . 1 Protection 19 | . . . . . 3 . . . . . . . 2 2 1 . . 1 . 1 2 2 1 2 2 Artifact . | . . . . . . . . . . . . . . . . . . . . . . . . . . Weapon 57 | 2 . 1 . 1 2 . 4 6 2 2 2 . 7 1 1 . 1 4 4 3 1 1 3 3 6 Energy Gun 22 | 1 . 1 . . 1 . 4 3 . 1 1 . 1 . . . . 1 . 1 . 1 2 1 3 Energy Cannon 11 | . . . . . 1 . . . 1 . . . 3 1 . . . 1 1 . 1 . . 1 1 Ballistic Gun 7 | 1 . . . . . . . . . . . . 2 . 1 . . . 1 . . . 1 . 1 Ballistic Cannon 2 | . . . . . . . . . . . . . . . . . . . . 1 . . . 1 . Launcher 11 | . . . . 1 . . . 2 1 . . . 1 . . . 1 2 1 1 . . . . 1 Special Weapon 1 | . . . . . . . . . . . 1 . . . . . . . . . . . . . . Impact Weapon 1 | . . . . . . . . 1 . . . . . . . . . . . . . . . . . Slashing Weapon . | . . . . . . . . . . . . . . . . . . . . . . . . . . Piercing Weapon 1 | . . . . . . . . . . . . . . . . . . . 1 . . . . . . Special Melee Weapon 1 | . . . . . . . . . . 1 . . . . . . . . . . . . . . . Unidentified Prototypes 32 | . . . . . 2 . . 4 . 1 1 . 10 . . . . 1 1 . 1 3 . 5 3 Corrupted Parts 10 | . . . . . . . . . . . . . . . . . 3 . . . . 3 . 3 1 System Corruption 56 | . . . . . . . . . . . . . . . . . 13 . . . . 21 . 21 1 Parts Lost 39 | . . . . 2 . . . . 1 . . . 7 2 . . 2 4 . 2 2 . . 1 16 Power 4 | . . . . . . . . . . . . . . . . . . . . . . . . . 4 Propulsion 5 | . . . . 1 . . . . . . . . 2 . . . . 1 . . . . . . 1 Utility 19 | . . . . 1 . . . . 1 . . . 2 2 . . 1 1 . 2 2 . . 1 6 Weapon 11 | . . . . . . . . . . . . . 3 . . . 1 2 . . . . . . 5 Highest Loss Streak 6 | . . . . 2 . . . . 1 . . . 3 2 . . 2 1 . 2 1 . . 1 6 To Critical Strikes 1 | . . . . . . . . . . . . . . . . . . . . . . . . . 1 Average Backups 17 | 1 10 19 20 19 19 19 15 13 13 13 13 14 19 18 19 20 19 18 18 17 17 18 18 20 20 Power 1 | . 1 1 1 1 . 1 1 1 1 1 1 1 1 2 2 2 2 2 1 1 1 1 2 2 . Propulsion 4 | . 4 8 8 7 4 3 3 3 3 3 3 3 6 5 7 7 6 4 3 4 3 2 2 1 2 Utility 7 | . 4 9 9 8 8 9 5 4 3 4 6 7 7 6 6 7 7 8 10 6 7 8 7 9 10 Weapon 4 | . 1 1 2 2 5 6 5 5 5 5 3 3 3 3 4 4 3 2 3 5 6 6 7 7 7 Tool/Special . | . . . . . . . . . . . . . . . . . . . . . . . . . . Unused Backups 38 | . . 1 . 2 10 . 5 1 . 1 1 . 1 . 1 . 1 . 3 . 2 3 . 1 5 Power 4 | . . . . . 2 . . . . . . . . . . . . . 1 . . 1 . . . Propulsion 5 | . . . . 1 . . 1 . . . . . . . . . 1 . 1 . . . . . 1 Utility 13 | . . . . 1 1 . 3 1 . 1 . . 1 . . . . . 1 . 1 . . 1 2 Weapon 16 | . . 1 . . 7 . 1 . . . 1 . . . 1 . . . . . 1 2 . . 2 Tool/Special . | . . . . . . . . . . . . . . . . . . . . . . . . . . Average Slot Usage (%) 87 | . 93 100 100 100 98 92 91 91 91 80 76 76 77 92 100 82 99 94 87 83 81 83 85 79 81 Engine 3 | . 14 14 14 14 8 7 . . . . . . 5 6 6 6 5 2 . . . . . . . Reactor 3 | . . . . . . . 6 7 7 7 7 7 . . . . . . 4 3 . 4 5 5 8 Treads 21 | . 28 28 28 28 26 30 23 22 23 23 23 23 15 25 26 26 26 28 17 17 17 17 16 17 14 Device 15 | . 8 14 14 7 16 15 16 23 29 18 10 7 17 8 7 6 6 14 19 22 10 11 13 10 21 Storage 7 | . 14 14 14 14 9 7 7 7 7 7 7 7 6 6 6 6 6 5 5 5 5 5 5 5 6 Processor 7 | . . . . 6 6 . . 2 . . 4 7 7 20 20 20 18 11 11 11 11 11 11 10 8 Protection 4 | . . . . . 6 . 11 4 . . . . 2 6 11 13 13 5 5 1 9 12 12 9 2 Energy Gun 9 | . 14 14 14 14 10 15 22 22 15 15 14 15 11 4 4 . . 1 3 4 . 2 5 5 7 Energy Cannon 3 | . . . . . . . . . . . . . 2 6 6 . 1 7 8 10 7 3 5 3 5 Ballistic Gun 3 | . 14 14 14 6 7 . . . . . . . . 4 8 1 11 2 . . . . 2 . 1 Launcher 2 | . . . . 7 . . . . 6 7 7 7 3 . . . 6 2 2 . 3 4 . 1 1 Peak Build Rating 161 | 6 9 18 18 20 35 36 63 68 67 79 84 84 105 97 89 88 90 105 134 134 126 136 137 140 161 Average Rating 86 | 4 7 11 18 18 28 36 54 63 64 75 82 84 91 86 88 75 87 93 125 129 120 125 132 130 144 On Entrance 71 | . 6 9 18 18 20 35 36 63 67 65 79 84 84 87 89 88 88 84 98 131 125 116 135 128 111 Avg Prop Armor Cover (%) . | . . . . . . . . . . . . . . . . . . . . . . . . . . Naked Turns . | . . . . . . . . . . . . . . . . . . . . . . . . . . Heaviest Build 176 | 11 47 57 57 59 65 62 79 80 80 81 81 80 161 122 123 123 137 137 141 161 162 156 142 176 175 Greatest Support 190 | 40 40 40 40 40 60 80 110 114 120 120 120 120 140 130 116 116 116 136 180 180 180 190 190 188 188 Greatest Overweight (x) 1 | . 1 1 1 1 1 . . . . . . . 1 1 1 1 1 1 . . . 1 . . 1 Average Overweight (x) . | . . 1 1 1 . . . . . . . . . . . . 1 . . . . . . . . Largest Inventory Capacity 25 | 8 20 20 20 20 20 20 20 20 20 20 20 20 25 25 25 25 25 25 25 25 25 25 25 25 25 Average Capacity 22 | 6 13 20 20 20 20 20 20 20 20 20 20 20 24 25 25 25 25 25 25 25 25 25 25 25 25 Most Carried 25 | 3 19 20 20 20 20 20 20 20 20 20 20 20 25 25 25 25 25 25 25 25 25 25 25 25 25 Average Carried 22 | 1 10 19 20 19 19 19 19 19 19 19 19 20 24 23 24 25 24 24 24 24 24 24 24 24 22 Final Capacity 25 | 8 20 20 20 20 20 20 20 20 20 20 20 20 25 25 25 25 25 25 25 25 25 25 25 25 25 Final Carried 25 | 3 19 20 20 20 20 20 20 20 20 20 20 20 23 25 25 25 25 25 25 25 25 25 25 24 25 Class Distribution -------------------- 34% | Scavenger-Tank 24% | Tank 17% | Mutant 9% | Gunner 7% | Commander-Tank 3% | Scavenger-Mutant Dominant Class ---------------- Mutant | -10/Materials Mutant | -10/Mines Mutant | -10/Exiles Mutant | -9/Mines Mutant | -8/Materials Scavenger-Mutant | -7/Factory Scavenger-Tank | -7/Waste Scavenger-Tank | -7/Factory Scavenger-Tank | -7/Lower Caves Tank | -7/Lower Caves Tank | -7/Zion Tank | -6/Proximity Caves Tank | -6/Factory Gunner | -6/Lower Caves Gunner | -6/Lower Caves Mutant | -6/Data Miner Gunner | -5/Proximity Caves Scavenger-Gunner | -5/Factory Scavenger-Tank | -5/Waste Tank | -5/Factory Tank | -5/Extension Commander-Tank | -5/Cetus Commander-Tank | -5/Archives Scavenger-Tank | -5/Hub_04(d) Scavenger-Tank | -4/Factory Resources | -11 -10 -10 -10 -9 -8 -7 -7 -7 -7 -7 -7 -6 -6 -6 -6 -6 -5 -5 -5 -5 -5 -5 -5 -5 -4 ----------- Run | Yrd Mat Min Exi Min Mat Fac Was Fac Low Low Zio Pro Fac Low Low Dat Pro Fac Was Fac Ext Cet Arc Hub Fac Matter Collected 9552 | 263 42 19 21 67 349 . 130 165 112 701 330 248 1762 405 128 . 276 195 418 223 742 234 465 920 1337 Remotely 528 | . . . . . . . . . . . . . 528 . . . . . . . . . . . . Salvage Created 16648 | 115 377 204 . 40 857 . 51 889 368 640 . 12 2964 930 133 . 608 959 91 610 1113 617 374 1590 3106 Parts 724 | 10 26 15 . 9 31 . 2 36 16 23 . 4 117 34 10 . 24 70 2 20 40 19 29 62 125 Haulers Intercepted 16 | . 2 . . . 1 . . 3 . . . . 3 . . . . . . 1 1 . . 3 2 Recyclers Shooed 27 | 1 . 1 . . 1 . . 1 . . . . 12 . . . . 2 . 1 1 . . 2 5 Parts Field Recycled 10 | . . . . . . . . . . . . . 10 . . . . . . . . . . . . Retrieved Matter 511 | . . . . . . . . . . . . . 511 . . . . . . . . . . . . Parts Self-Destructed 77 | . . . . . . . . . 15 14 . 5 . 23 12 . 8 . . . . . . . . Prevented 14 | . . . . . . . . . . . . . . 1 . . 13 . . . . . . . . Parts Restored . | . . . . . . . . . . . . . . . . . . . . . . . . . . Kills | -11 -10 -10 -10 -9 -8 -7 -7 -7 -7 -7 -7 -6 -6 -6 -6 -6 -5 -5 -5 -5 -5 -5 -5 -5 -4 ------- Run | Yrd Mat Min Exi Min Mat Fac Was Fac Low Low Zio Pro Fac Low Low Dat Pro Fac Was Fac Ext Cet Arc Hub Fac Combat Hostiles Destroyed 274 | . 5 8 . 5 14 . . 13 8 14 . 3 46 12 3 . 12 23 . 16 17 7 1 17 50 Guns 89 | . 4 7 . 1 14 . . 9 5 3 . . 11 9 3 . 2 4 . 1 . . . 5 11 Cannons 63 | . . . . . . . . . . . . . 5 3 . . 2 7 . 7 10 1 1 9 18 AOE 102 | . 1 1 . 4 . . . 4 2 11 . 3 26 . . . 8 11 . 5 6 . . 3 17 Classes Destroyed 23 | 2 6 . . . 2 . . 2 2 1 . 1 5 1 . . . 1 . . . . . . . Worker 35 | . 1 . . . . . . 3 . . . . 15 . . . . 6 . . . . . 6 4 Builder 17 | . . . . . . . . 1 . . . . 6 . . . . 5 . . . . . 1 4 Tunneler 5 | 1 . . . 1 . . . 1 . . . . . . . . . . . . . . . 2 . Hauler 16 | . 2 . . . 1 . . 3 . . . . 3 . . . . . . 1 1 . . 3 2 Recycler 24 | 1 1 . . . 2 . . 2 . . . . 8 . . . . 1 . . 3 . . . 6 Mechanic 3 | . . . . . . . . . . . . . 3 . . . . . . . . . . . . Operator 14 | . 1 . . . 1 . . . . . . . . . . . . 1 . . 2 . 9 . . Drone 4 | . . . . . . . . . . . . 2 . . . . 2 . . . . . . . . Watcher 7 | . 1 . . . . . . . . . . . 2 . . . . . . . . 2 . 1 1 Swarmer 69 | . 3 8 . 5 3 . . . . 7 . 1 7 . 3 . 5 12 . . 6 . . . 9 Saboteur 3 | . . . . . . . . . . . . . 1 . . . . . . 1 . . . . 1 Grunt 86 | . 2 . . . 9 . . 12 6 6 . . 14 4 . . 4 4 . 5 3 . . 8 9 Brawler 9 | . . . . . 1 . . . . . . . 1 2 . . 1 . . 3 . . . . 1 Duelist 6 | . . . . . . . . . 1 . . . . 1 . . . . . . 1 . . . 3 Protector 4 | . . . . . . . . . . . . . 2 . . . . . . . . . . . 2 Sentry 24 | . . . . . 1 . . . . 1 . . 3 1 . . . 2 . 1 5 . 1 2 7 Specialist 6 | . . . . . . . . . . . . . 4 . . . . . . 2 . . . . . Hunter 20 | . . . . . . . . . 1 . . . 8 . . . . . . 1 1 . . 1 8 Programmer 24 | . . . . . . . . 1 . . . . 5 . . . . 4 . 2 . . . 3 9 Heavy 3 | . . . . . . . . . . . . . 1 . . . . . . 1 . . . . 1 Behemoth 2 | . . . . . . . . . . . . . . . . . . 1 . . 1 . . . . Cetus Guard 7 | . . . . . . . . . . . . . . . . . . . . . . 7 . . . Enhanced Grunt 1 | . . . . . . . . . . . . . . . . . . . . . . . . 1 . Lightning 3 | . . . . . . . . . . . . . . . . . . . . . . . . 3 . Packrat 2 | . . . . . . . . . . 1 . . . 1 . . . . . . . . . . . Samaritan 7 | . . . . . . . . . . 6 . . . . 1 . . . . . . . . . . Surgeon 1 | . . . . . . . . . . . . . . . . . . . . 1 . . . . . Wasp 1 | . . . . . . . . . . . . . . . . . . . 1 . . . . . . Thug 3 | . . . . . . . . . . . . . . 2 . . . . . . 1 . . . . Savage 2 | . . . . . . . . . . . . . . 1 . . 1 . . . . . . . . Guerrilla 1 | . . . . . . . . . . . . . . . . . . . . . . . . 1 . Mutant 1 | . . . . . . . . . . . . . . 1 . . . . . . . . . . . Best Kill Streak 38 | 1 4 3 . 3 5 . . 7 3 5 . 2 38 4 3 . 5 19 . 7 5 5 2 9 24 Combat Bots Only 9 | . 3 3 . 3 5 . . 5 3 5 . 2 9 4 3 . 5 8 . 7 5 4 1 5 9 Max Kills in Single Turn 7 | 1 2 2 . 2 1 . . 4 2 2 . 1 7 1 1 . 3 5 1 3 4 2 1 5 4 Gunslinging 1 | . . 1 . . . . . . 1 . . . . . . . . . . . . . . . . Exploded 5 | . 1 1 . 2 . . . 3 1 2 . 1 5 . . . 3 4 . 2 4 . . 3 4 Melee . | . . . . . . . . . . . . . . . . . . . . . . . . . . Uniques/NPCs Destroyed . | . . . . . . . . . . . . . . . . . . . . . . . . . . Combat | -11 -10 -10 -10 -9 -8 -7 -7 -7 -7 -7 -7 -6 -6 -6 -6 -6 -5 -5 -5 -5 -5 -5 -5 -5 -4 -------- Run | Yrd Mat Min Exi Min Mat Fac Was Fac Low Low Zio Pro Fac Low Low Dat Pro Fac Was Fac Ext Cet Arc Hub Fac Hostile Shots Fired 1721 | . 26 23 3 25 81 . . 36 35 34 . 15 385 49 12 . 27 103 . 142 75 30 3 130 487 Missed 531 | . 11 7 1 7 20 . . 9 11 12 . 8 108 13 5 . 8 34 . 37 19 16 1 27 177 Hits 1190 | . 15 16 2 18 61 . . 27 24 22 . 7 277 36 7 . 19 69 . 105 56 14 2 103 310 Melee 38 | . . . . . . . . . 2 . . . . . . . 3 . . 1 1 . . 5 26 Projectile 1152 | . 15 16 2 18 61 . . 27 22 22 . 7 277 36 7 . 16 69 . 104 55 14 2 98 284 AOE 3 | . . . . . . . . 2 . . . . . . . . . . . . . . . 1 . Critical Strikes 55 | . . . . . 2 . . . . . . . 9 1 . . 1 2 . 1 4 1 1 13 20 Actively Blocked 3 | . . . . . . . . . . . . . . . . . . . . . 1 . . 2 . Part Disruptions 2 | . . . . . . . . . . . . . . . . . . . . . . . . 1 1 Damage Taken 18418 | . 138 129 14 125 675 . . 391 312 357 . 79 4569 630 110 . 464 1103 41 1378 1195 272 161 1351 4924 Core 1461 | . . 12 . 18 83 . . 25 . 42 . . 408 32 . . 7 60 12 79 126 15 . 36 506 Absorbed by Shields 2903 | . . 23 6 49 211 . . 149 118 29 . . 151 20 . . . 184 . 321 105 133 . 181 1223 Reduced by Siege Mode 22 | . . . . . . . . . . . . . . . . . . . . . 22 . . . . Redirected to Shielding 306 | . . . . . 22 . . 9 . . . . . . . . . . . . 134 49 . 48 44 Ignored by Resistances 2551 | . . . . . . . . . . . . . . . . . . . . . . . . 1483 1068 Regen/Repaired (Parts) 5153 | . . . . . 156 . 51 730 . . . . 278 . . . . . 1235 580 . . . . 2123 Core Remaining (%) 79 | 100 . . . 88 84 . . . . . . 90 . . . . 47 . . . . . . 67 . Volleys Fired 842 | 3 22 17 6 11 81 . 3 36 18 44 1 5 123 42 8 . 26 44 8 37 59 11 50 54 133 Largest 4 | 2 2 2 1 1 2 . 3 3 3 3 1 2 3 3 2 . 2 3 3 3 3 2 3 3 4 Hottest 364 | 60 60 60 75 75 135 . 243 243 201 172 55 136 218 268 103 . 118 279 307 307 277 240 221 320 364 Shots Fired 1670 | 6 44 34 6 11 162 . 9 99 39 82 1 6 262 69 15 . 36 83 15 89 104 15 64 117 302 Gun 1025 | 6 44 34 6 7 155 . 9 98 36 71 1 2 182 50 15 . 16 27 3 24 . 2 45 28 164 Cannon 544 | . . . . . 7 . . . . . . . 64 19 . . 5 47 11 63 100 6 19 85 118 Launcher 101 | . . . . 4 . . . 1 3 11 . 4 16 . . . 15 9 1 2 4 7 . 4 20 Special . | . . . . . . . . . . . . . . . . . . . . . . . . . . Kinetic 455 | 3 22 17 . . 74 . . . . . . . 18 37 8 . 16 17 . 7 55 3 49 67 62 Thermal 1046 | . . . 6 7 88 . 9 98 36 71 1 2 228 32 7 . 5 57 14 80 45 5 15 44 196 Explosive 70 | . . . . 4 . . . 1 3 11 . 4 16 . . . . 8 . 2 4 . . . 17 Electromagnetic 99 | 3 22 17 . . . . . . . . . . . . . . 15 1 1 . . 7 . 6 27 Robot Hit Streak 25 | 4 5 3 . 3 15 . 9 12 4 16 . 2 11 18 6 . 16 18 12 25 16 23 10 14 21 Robot Miss Streak 5 | . 4 5 . 1 4 . . 3 2 3 . 1 3 2 1 . 1 4 3 1 5 2 3 4 3 Penetration Max 1 | . . . . . . . . . . . . . 1 1 . . 1 . . . 1 . 1 1 1 Secondary Targets 15 | . 1 3 . . 3 . . 2 1 . . . 2 . 1 . 1 . . . . . . . 1 Max Gunslinging Chain 1 | . 1 1 . . 1 . . 1 1 . . . 1 . 1 . 1 . . . . . . . 1 Shots Hit Robots 1100 | 4 20 15 . 8 108 . 2 58 24 60 . 2 181 54 11 . 22 51 12 66 70 7 46 68 211 Core Hits 839 | 3 13 11 . 8 38 . 1 33 13 43 . 3 236 23 6 . 25 52 28 31 31 31 17 56 137 Critical Kills 57 | . . . . . . . . . . . . . 4 8 2 . 2 4 . 4 13 1 3 11 5 Critical Parts Destroyed 70 | . . 1 . . . . . . . . . . 3 9 . . 2 2 . 2 18 1 9 17 6 Critical Strikes 173 | . . 1 . . 1 . 1 2 5 3 . . 25 23 3 . 4 6 . 8 34 2 12 30 13 Burn 38 | . . . . . 1 . 1 2 5 3 . . 18 4 1 . . . . 1 . . . . 2 Meltdown 7 | . . . . . . . . . . . . . 1 . . . . 1 . 2 1 . . . 2 Destroy 126 | . . 1 . . . . . . . . . . 6 19 2 . 4 5 . 5 33 2 12 28 9 Corrupt 2 | . . . . . . . . . . . . . . . . . . . . . . . . 2 . Melee Attacks . | . . . . . . . . . . . . . . . . . . . . . . . . . . Impact . | . . . . . . . . . . . . . . . . . . . . . . . . . . Slashing . | . . . . . . . . . . . . . . . . . . . . . . . . . . Piercing . | . . . . . . . . . . . . . . . . . . . . . . . . . . Sneak Attacks . | . . . . . . . . . . . . . . . . . . . . . . . . . . Combat Hostiles . | . . . . . . . . . . . . . . . . . . . . . . . . . . Follow-up Attacks . | . . . . . . . . . . . . . . . . . . . . . . . . . . Damage Inflicted 49884 | 59 395 281 . 422 1627 . 45 2095 865 2236 . 316 10906 898 138 . 1168 3544 1228 3724 2500 1040 1347 3034 12016 Guns 13982 | 59 285 148 . 104 1489 . 45 1382 525 1207 . 16 2610 463 138 . 163 219 72 503 . . 828 588 3138 Cannons 12982 | . . . . . 138 . . . . . . . 1888 435 . . 152 1324 348 1791 1807 160 411 1015 3513 Explosions 22580 | . 110 129 . 309 . . . 624 340 1029 . 300 6362 . . . 853 1992 808 1420 680 880 108 1402 5234 Melee . | . . . . . . . . . . . . . . . . . . . . . . . . . . Ramming 340 | . . 4 . 9 . . . 89 . . . . 46 . . . . 9 . 10 13 . . 29 131 Kinetic 4768 | 21 71 71 . . 441 . . . . . . . 114 237 48 . 163 86 . 101 732 47 826 639 1171 Thermal 22490 | . 110 129 . 104 1186 . 45 1470 525 1207 . 16 4458 661 90 . 207 1926 420 2193 1075 113 521 1002 5032 Explosive 17075 | . . . . 309 . . . 536 340 1029 . 300 6288 . . . . 1440 . 1420 680 . . . 4733 Electromagnetic 5211 | 38 214 77 . . . . . . . . . . . . . . 798 83 808 . . 880 . 1364 949 Impact . | . . . . . . . . . . . . . . . . . . . . . . . . . . Slashing . | . . . . . . . . . . . . . . . . . . . . . . . . . . Piercing . | . . . . . . . . . . . . . . . . . . . . . . . . . . Highest Corruption 24 | . . . . . . . . 3 3 3 3 . 4 8 8 4 23 3 3 9 5 21 21 24 8 Average Corruption 4 | . . . . . . . . 2 3 3 3 . 3 6 6 4 6 2 2 4 4 18 11 2 3 Corruption Purged 47 | . . . . . . . . . . . . . . . 4 . . . 3 5 5 . 19 3 8 Corruption Blocked . | . . . . . . . . . . . . . . . . . . . . . . . . . . Effects 241 | . . . . . . . . 21 14 18 5 . 4 29 15 3 23 3 16 21 9 13 23 7 17 Message Errors 68 | . . . . . . . . 11 3 8 1 . 1 7 5 2 5 2 4 5 2 4 5 1 2 Matter Fused 52 | . . . . . . . . 3 5 3 1 . 1 7 3 . 7 . 3 5 3 1 4 1 5 Heat Flow Errors 21 | . . . . . . . . 1 1 . 2 . . 1 3 . 4 . . 3 . 1 3 . 2 Energy Discharges 27 | . . . . . . . . 2 2 3 1 . 1 4 1 . 2 . 1 3 1 1 2 . 3 Parts Rejected 4 | . . . . . . . . . . . . . 1 1 . . . 1 . . . . . . 1 Parts Fused 2 | . . . . . . . . . . . . . . . . . . . . . . . 1 1 . Data Loss (minor) 26 | . . . . . . . . 3 3 2 . . . 3 . 1 . . 3 3 1 1 2 2 2 Data Loss (major) 18 | . . . . . . . . 1 . 1 . . . 2 1 . 2 . 3 2 . 3 3 . . Misfires 8 | . . . . . . . . . . 1 . . . 2 . . . . 1 . 1 1 . 1 1 Alerts 8 | . . . . . . . . . . . . . . . 1 . 2 . 1 . 1 1 1 1 . Weapon Failures 7 | . . . . . . . . . . . . . . 2 1 . 1 . . . . . 2 . 1 Overload Shots 4 | . . . . . . . . . . . . . 1 . . . . . . . . 2 . 1 . Overflow Damage 980 | . 35 12 . 42 . . . 11 42 . . 22 132 33 . . 12 174 21 89 32 . . 14 309 Projectiles 407 | . . . . . . . . . . . . . 70 33 . . . 39 21 77 30 . . 7 130 Explosions 548 | . 35 12 . 42 . . . . 42 . . 22 62 . . . 12 135 . 12 2 . . 7 165 Melee 25 | . . . . . . . . 11 . . . . . . . . . . . . . . . . 14 Knockbacks 18 | . . . . . . . . 1 . . . . . . . . . . . . 4 . 2 10 1 Impact 1 | . . . . . . . . 1 . . . . . . . . . . . . . . . . . Kinetic 16 | . . . . . . . . . . . . . . . . . . . . . 4 . 2 9 1 Secondary 1 | . . . . . . . . . . . . . . . . . . . . . . . . 1 . Self-Inflicted Damage 618 | . 4 27 . . . . . . 64 11 . . 115 . . . 30 . 41 103 . . 55 9 159 Shots 28 | . 1 1 . . . . . . 2 1 . . 7 . . . 2 . 4 2 . . 1 1 6 Rammed 23 | . . 3 . 2 . . . 4 . . . . 2 . . . . 1 . 1 2 . . 2 6 Targets Rammed 26 | . . 3 . 3 . . . 5 . . . . 2 . . . . 1 . 1 2 . . 2 7 Kicked . | . . . . . . . . . . . . . . . . . . . . . . . . . . Crushed 3 | . . . . 1 . . . 1 . . . . . . . . . . . . . . . . 1 Highest Temperature 540 | 40 60 40 114 266 472 . 111 222 207 76 246 60 423 404 235 . 224 72 220 324 345 273 246 540 450 Average Temperature 96 | 19 26 20 47 134 87 . 53 32 32 23 83 35 139 144 83 . 61 21 99 126 103 105 97 137 103 Received Heat Transfer 3675 | . 30 . . 18 362 . . 132 120 99 . 24 690 260 . . 135 202 . 430 261 39 9 381 483 Effects 21 | . . . . . 2 . . . . . . . 7 . . . . . . . 1 . . 8 3 Shutdowns 5 | . . . . . 1 . . . . . . . . . . . . . . . . . . 1 3 Energy Bleed 4 | . . . . . . . . . . . . . 3 . . . . . . . 1 . . . . Interference 4 | . . . . . . . . . . . . . 4 . . . . . . . . . . . . Matter Decay 2 | . . . . . 1 . . . . . . . . . . . . . . . . . . 1 . Short Circuit 1 | . . . . . . . . . . . . . . . . . . . . . . . . 1 . Damage (minor) 1 | . . . . . . . . . . . . . . . . . . . . . . . . 1 . Damage (major) 4 | . . . . . . . . . . . . . . . . . . . . . . . . 4 . Siege Activations 1 | . . . . . . . . . . . . . . . . . . . . . 1 . . . . Total Turns 8 | . . . . . . . . . . . . . . . . . . . . . 8 . . . . Longest Duration 8 | . . . . . . . . . . . . . . . . . . . . . 8 . . . . Martial Activations . | . . . . . . . . . . . . . . . . . . . . . . . . . . Shielding Activations . | . . . . . . . . . . . . . . . . . . . . . . . . . . Robots Disrupted 1 | . . . . . . . . . . . . . . . . . . . 1 . . . . . . Combat Hostiles . | . . . . . . . . . . . . . . . . . . . . . . . . . . Robots Corrupted 12 | . . . . . . . . 1 . . . . . . . . . . . . . 6 . 2 3 Combat Hostiles 8 | . . . . . . . . . . . . . . . . . . . . . . 6 . . 2 Parts Fried 18 | . . . . . . . . 1 . . . . . . . . 2 . . . . 4 . 7 4 Impact Corruptions 3 | . . . . . . . . 1 . . . . . . . . . . . . . . . . 2 Robots Melted 13 | . . . . . . . . . 1 . . . 5 . . . . 1 . 3 1 . . . 2 Combat Hostiles 12 | . . . . . . . . . 1 . . . 4 . . . . 1 . 3 1 . . . 2 Parts Melted 43 | . . . . . 2 . . 1 . 6 . . 14 . 1 . . 7 . 1 3 . 1 . 7 Heat Transferred 29292 | . 200 50 . 185 2146 . 148 2381 1221 2368 . 37 8136 1147 222 . 185 1904 444 2294 962 . 198 820 4244 Parts Sabotaged . | . . . . . . . . . . . . . . . . . . . . . . . . . . Parts Stolen 2 | . . . . . . . . . 2 . . . . . . . . . . . . . . . . Parts Stripped . | . . . . . . . . . . . . . . . . . . . . . . . . . . Power Chain Reactions 10 | . 2 2 . . . . . . . . . . . . . . 1 . . . . . 1 2 2 Alert | -11 -10 -10 -10 -9 -8 -7 -7 -7 -7 -7 -7 -6 -6 -6 -6 -6 -5 -5 -5 -5 -5 -5 -5 -5 -4 ------- Run | Yrd Mat Min Exi Min Mat Fac Was Fac Low Low Zio Pro Fac Low Low Dat Pro Fac Was Fac Ext Cet Arc Hub Fac Maximum Alert Level 4 | . . . . . . . . 4 . . . . 4 . . . . 3 1 3 4 3 2 3 4 Low Security (%) 44 | 100 100 100 . 100 100 100 100 30 . . . . 58 . . . . 20 72 41 . . . 11 . Level 1 12 | . . . . . . . . 3 . . . . 13 . . . . 55 27 7 . . 76 16 20 Level 2 14 | . . . . . . . . 11 . . . . 12 . . . . 7 . 21 58 7 23 24 14 Level 3 21 | . . . . . . . . 16 . . . . 3 . . . . 17 . 29 37 92 . 48 56 Level 4 6 | . . . . . . . . 37 . . . . 11 . . . . . . . 4 . . . 8 Level 5 . | . . . . . . . . . . . . . . . . . . . . . . . . . . High Security . | . . . . . . . . . . . . . . . . . . . . . . . . . . Max Security . | . . . . . . . . . . . . . . . . . . . . . . . . . . Peak Influence 1505 | 5 84 70 . 91 188 . 10 1488 . . . . 1505 . . . . 951 320 1027 1207 876 442 925 1341 Initial 668 | . . . . . . . . . . . . . 150 . . . . 7 320 . 497 668 293 91 445 Average 417 | . 17 21 . 18 93 . . 746 . . . . 371 . . . . 361 124 433 706 779 355 595 742 Influence Increases 15513 | 10 173 241 . 224 630 . 10 2282 190 354 . 98 2263 254 99 . 252 1147 24 1627 1369 363 295 1760 1848 Destroy 0b10 Robot/C 7300 | . 100 160 . 140 380 . . 780 160 320 . 80 1180 180 80 . 200 460 . 580 620 160 80 680 960 Destroy 0b10 Robot/NC 790 | 10 30 10 . 5 20 . . 90 . . . 10 220 . . . 10 65 . 25 65 10 45 80 95 Destroy Leader 1418 | . 16 30 . 30 62 . . 172 30 30 . . 294 20 10 . 20 100 . 138 74 . . 176 216 Allied During Kill 2021 | . . . . 27 21 . . 714 . 4 . 8 52 9 9 . 7 . . 273 370 170 121 236 . Successful Hack 493 | . 7 . . . 57 . . 138 . . . . 96 . . . . 10 . 52 28 . . 26 79 Disable Machine 990 | . 15 . . . 75 . . 210 . . . . 30 . . . . 90 . 195 60 15 15 180 105 Anti-Garrison Action 300 | . . . . . . . . . . . . . . . . . . 300 . . . . . . . Destroy Structure 1751 | . 5 11 . 22 . . 10 178 . . . . 181 . . . . 122 24 364 122 8 34 352 318 Advance Influence 150 | . . . . . . . . . . . . . 150 . . . . . . . . . . . . Lose Combat Pursuer 300 | . . 30 . . 15 . . . . . . . 60 45 . . 15 . . . 30 . . 30 75 Influence Decreases 14182 | 10 173 241 . 224 630 . 10 809 954 541 522 98 760 957 474 425 240 242 941 610 1191 825 766 1113 1426 Entered New Map 5061 | . . . . . . . . . 546 135 522 . . 557 152 425 . 5 597 . 520 527 440 171 464 Time Decay 7031 | 10 173 241 . 204 400 . 10 519 398 386 . 78 650 380 302 . 220 197 344 380 571 238 286 392 652 Lost Part 390 | . . . . 20 . . . . 10 . . . 70 20 . . 20 40 . 20 20 . . 10 160 Lost Ally 1080 | . . . . . 60 . . 290 . 20 . 20 40 . 20 . . . . 210 80 60 40 240 . Purge Threat 620 | . . . . . 170 . . . . . . . . . . . . . . . . . . 300 150 Squads Dispatched 90 | . 1 . . . 2 . . 17 . 1 . . 18 . . . . 10 . 9 1 . . 16 15 Investigation 25 | . 1 . . . . . . 8 . . . . 3 . . . . 1 . 2 . . . 8 2 Extermination 14 | . . . . . . . . 2 . . . . 4 . . . . 1 . 2 . . . 1 4 Reinforcement 24 | . . . . . 2 . . 3 . . . . 9 . . . . 2 . 2 1 . . 2 3 Assault 18 | . . . . . . . . 1 . 1 . . 2 . . . . 4 . 3 . . . 1 6 Garrison 9 | . . . . . . . . 3 . . . . . . . . . 2 . . . . . 4 . Intercept . | . . . . . . . . . . . . . . . . . . . . . . . . . . Searches Triggered . | . . . . . . . . . . . . . . . . . . . . . . . . . . Data Miner Redirects 7 | . . . . . . . . . . . . . . . . . . 3 . 1 . . . 2 1 Construction Impeded 9 | . . . . . 1 . . 1 . . . . 4 . . . . 1 . . . . . 1 1 Haulers Reinforced 4 | . . . . . . . . 1 . . . . 2 . . . . . . . . . . 1 . Active Scanning Responses . | . . . . . . . . . . . . . . . . . . . . . . . . . . Cargo Convoy Interrupts 1 | . . . . . . . . . . . . . 1 . . . . . . . . . . . . Stealth | -11 -10 -10 -10 -9 -8 -7 -7 -7 -7 -7 -7 -6 -6 -6 -6 -6 -5 -5 -5 -5 -5 -5 -5 -5 -4 --------- Run | Yrd Mat Min Exi Min Mat Fac Was Fac Low Low Zio Pro Fac Low Low Dat Pro Fac Was Fac Ext Cet Arc Hub Fac Distress Signals 30 | . 1 . . . 1 . . 1 . . . . 6 . . . . 4 . 2 1 2 . 9 3 Communications Jammed 6 | . . . . . . . . . . . . . . . . . . . . . . . . . 6 Distress Signals 6 | . . . . . . . . . . . . . . . . . . . . . . . . . 6 Times Spotted 487 | . 8 8 3 8 25 . 1 32 10 15 . 5 80 17 3 . 12 32 1 25 41 9 24 46 82 Peak Tracking Total 12 | . 5 3 9 3 6 . 1 4 4 5 . 2 11 6 3 . 4 10 1 6 5 5 2 12 12 Tactical Retreats 21 | . . 2 . . 1 . . . . . . . 3 5 . . 1 . . . 2 . . 2 5 Traps | -11 -10 -10 -10 -9 -8 -7 -7 -7 -7 -7 -7 -6 -6 -6 -6 -6 -5 -5 -5 -5 -5 -5 -5 -5 -4 ------- Run | Yrd Mat Min Exi Min Mat Fac Was Fac Low Low Zio Pro Fac Low Low Dat Pro Fac Was Fac Ext Cet Arc Hub Fac Traps Triggered 10 | . . . . . 1 1 . 2 . . . . 1 . . . . 2 . 2 . . . 1 . Indirectly 1 | . . . . . . . . . . . . . . . . . . 1 . . . . . . . Trap Hack Attempts . | . . . . . . . . . . . . . . . . . . . . . . . . . . Triggered . | . . . . . . . . . . . . . . . . . . . . . . . . . . Disarmed . | . . . . . . . . . . . . . . . . . . . . . . . . . . Reprogrammed . | . . . . . . . . . . . . . . . . . . . . . . . . . . Reused . | . . . . . . . . . . . . . . . . . . . . . . . . . . Traps Extracted . | . . . . . . . . . . . . . . . . . . . . . . . . . . Installed . | . . . . . . . . . . . . . . . . . . . . . . . . . . Triggered . | . . . . . . . . . . . . . . . . . . . . . . . . . . Machines | -11 -10 -10 -10 -9 -8 -7 -7 -7 -7 -7 -7 -6 -6 -6 -6 -6 -5 -5 -5 -5 -5 -5 -5 -5 -4 ---------- Run | Yrd Mat Min Exi Min Mat Fac Was Fac Low Low Zio Pro Fac Low Low Dat Pro Fac Was Fac Ext Cet Arc Hub Fac Machines Disabled 77 | . 1 . 2 . 5 . . 14 . 2 . . 2 . . . . 8 . 13 8 2 1 12 7 Max in Single Turn 9 | . 1 . 1 . 1 . . 3 . 1 . . 1 . . . . 3 . 5 2 1 . 9 1 Garrison Access 3 | . . . . . . . . . . . . . . . . . . 2 . . . . . . 1 Network Hub 1 | . . . . . . . . . . . . . . . . . . . . . . . . 1 . Machines Repaired . | . . . . . . . . . . . . . . . . . . . . . . . . . . Machines Dismantled . | . . . . . . . . . . . . . . . . . . . . . . . . . . Machines Sabotaged . | . . . . . . . . . . . . . . . . . . . . . . . . . . Overloaded Fab Kills . | . . . . . . . . . . . . . . . . . . . . . . . . . . Hacking | -11 -10 -10 -10 -9 -8 -7 -7 -7 -7 -7 -7 -6 -6 -6 -6 -6 -5 -5 -5 -5 -5 -5 -5 -5 -4 --------- Run | Yrd Mat Min Exi Min Mat Fac Was Fac Low Low Zio Pro Fac Low Low Dat Pro Fac Was Fac Ext Cet Arc Hub Fac Machines Accessed 61 | . 2 . 2 1 6 . . 10 . 1 . . 6 . . 3 . 2 . 10 2 . . 8 8 Terminals 32 | . 2 . . . 4 . . 5 . . . . 5 . . . . . . 3 2 . . 8 3 Fabricators 7 | . . . . . . . . 2 . . . . . . . . . 1 . 3 . . . . 1 Repair Stations 10 | . . . . . 1 . . 2 . . . . 1 . . . . . . 3 . . . . 3 Recycling Units 1 | . . . . . 1 . . . . . . . . . . . . . . . . . . . . Scanalyzers 3 | . . . . . . . . 1 . . . . . . . . . 1 . 1 . . . . . Garrison Access 1 | . . . . . . . . . . . . . . . . . . . . . . . . . 1 Total Hacks 231 | . 7 . 2 1 25 . . 35 . 1 . . 21 . . 16 . 12 . 24 5 . . 29 53 Successful 114 | . 2 . 2 1 14 . . 16 . 1 . . 11 . . 16 . 6 . 10 3 . . 10 22 Failed 115 | . 4 . . . 10 . . 19 . . . . 10 . . . . 6 . 14 2 . . 19 31 Catastrophic 19 | . 1 . . . . . . 2 . . . . 1 . . . . 2 . 4 1 . . 3 5 Database Lockouts 2 | . 1 . . . 1 . . . . . . . . . . . . . . . . . . . . Manual 96 | . 7 . 1 . 11 . . 13 . . . . 10 . . . . 2 . 3 2 1 . 24 22 Terminals 117 | . 7 . . . 16 . . 19 . . . . 18 . . . . . . 4 5 . . 29 19 Fabricators 21 | . . . . . . . . 5 . . . . . . . . . 1 . 5 . . . . 10 Repair Stations 47 | . . . . . 7 . . 8 . . . . 3 . . . . . . 7 . . . . 22 Recycling Units 2 | . . . . . 2 . . . . . . . . . . . . . . . . . . . . Scanalyzers 22 | . . . . . . . . 3 . . . . . . . . . 11 . 8 . . . . . Garrison Access 2 | . . . . . . . . . . . . . . . . . . . . . . . . . 2 Terminal Hacks 48 | . 1 . 2 1 7 . . 4 . 1 . . 6 . . 16 . . . 1 2 . . 3 4 Record 3 | . . . 1 . . . . . . . . . . . . 2 . . . . . . . . . Part Schematic 12 | . 1 . . . 2 . . . . . . . . . . 8 . . . . 1 . . . . Robot Schematic 3 | . . . . . . . . . . . . . . . . 3 . . . . . . . . . Prototype ID Bank 5 | . . . . . 1 . . . . . . . . . . 3 . . . . . . . . 1 Open Door 3 | . . . . 1 . . . . . 1 . . . . . . . . . 1 . . . . . Branch Access Points 1 | . . . . . . . . 1 . . . . . . . . . . . . . . . . . Terminal Index 1 | . . . . . . . . 1 . . . . . . . . . . . . . . . . . Alert Level 4 | . . . . . . . . 1 . . . . . . . . . . . . . . . 1 2 Unreport Threat 6 | . . . . . 3 . . . . . . . . . . . . . . . . . . 2 1 Security Status 1 | . . . . . . . . . . . . . 1 . . . . . . . . . . . . Patrol Status 1 | . . . . . . . . . . . . . 1 . . . . . . . . . . . . Transport Status 1 | . . . . . . . . . . . . . 1 . . . . . . . . . . . . Extermination Status 1 | . . . . . . . . . . . . . 1 . . . . . . . . . . . . Hauler Manifests 1 | . . . . . . . . . . . . . 1 . . . . . . . . . . . . Zone Layout 4 | . . . . . 1 . . 1 . . . . 1 . . . . . . . 1 . . . . Proto ID Catalog 1 | . . . 1 . . . . . . . . . . . . . . . . . . . . . . Fabricator Hacks 6 | . . . . . . . . 3 . . . . . . . . . . . 1 . . . . 2 Load Schematic 4 | . . . . . . . . 2 . . . . . . . . . . . 1 . . . . 1 Build 2 | . . . . . . . . 1 . . . . . . . . . . . . . . . . 1 Repair Station Hacks 23 | . . . . . 4 . . 4 . . . . 2 . . . . . . 3 . . . . 10 Scan Component 13 | . . . . . 2 . . 2 . . . . 1 . . . . . . 2 . . . . 6 Repair 10 | . . . . . 2 . . 2 . . . . 1 . . . . . . 1 . . . . 4 Recycling Unit Hacks . | . . . . . . . . . . . . . . . . . . . . . . . . . . Scanalyzer 11 | . . . . . . . . 1 . . . . . . . . . 6 . 4 . . . . . Insert Component 7 | . . . . . . . . 1 . . . . . . . . . 4 . 2 . . . . . Analyze 4 | . . . . . . . . . . . . . . . . . . 2 . 2 . . . . . Garrison Access Hacks 1 | . . . . . . . . . . . . . . . . . . . . . . . . . 1 Seal Access 1 | . . . . . . . . . . . . . . . . . . . . . . . . . 1 Unauthorized Hacks 25 | . 1 . . . 3 . . 4 . . . . 3 . . . . . . 1 1 . . 7 5 Terminals 21 | . 1 . . . 1 . . 4 . . . . 3 . . . . . . 1 1 . . 7 3 Track 1 | . . . . . . . . 1 . . . . . . . . . . . . . . . . . Assimilate 1 | . . . . . . . . . . . . . . . . . . . . . . . . . 1 Botnet 14 | . 1 . . . 1 . . 3 . . . . 3 . . . . . . 1 1 . . 3 1 Operators 1 | . . . . . . . . . . . . . . . . . . . . . . . . . 1 Sabotage 4 | . . . . . . . . . . . . . . . . . . . . . . . . 4 . Fabricators 2 | . . . . . . . . . . . . . . . . . . . . . . . . . 2 Prioritize 1 | . . . . . . . . . . . . . . . . . . . . . . . . . 1 Haulers 1 | . . . . . . . . . . . . . . . . . . . . . . . . . 1 Repair Stations . | . . . . . . . . . . . . . . . . . . . . . . . . . . Recycling Units 2 | . . . . . 2 . . . . . . . . . . . . . . . . . . . . Reject 1 | . . . . . 1 . . . . . . . . . . . . . . . . . . . . Mask 1 | . . . . . 1 . . . . . . . . . . . . . . . . . . . . Scanalyzers . | . . . . . . . . . . . . . . . . . . . . . . . . . . Garrison Access . | . . . . . . . . . . . . . . . . . . . . . . . . . . Data Cores Recovered 3 | . 1 . . . . . . . . . . . . . . . . 1 . 1 . . . . . Used 1 | . . . . . . . . . . . . . . . . . . . . 1 . . . . . Hacking Detections 52 | . 2 . . . 6 . . 10 . . . . 6 . . . . 2 . 10 2 . . 7 7 Full Trace Events 19 | . 1 . . . . . . 7 . . . . 2 . . . . 1 . 2 . . . 4 2 Feedback Events 3 | . . . . . . . . 2 . . . . . . . . . . . . . . . 1 . Corruption 3 | . . . . . . . . 2 . . . . . . . . . . . . . . . 1 . Feedback Blocked . | . . . . . . . . . . . . . . . . . . . . . . . . . . Robot Schematics Acquired 7 | . . . . . . . . . . . 4 . . . . 3 . . . . . . . . . Robots Built . | . . . . . . . . . . . . . . . . . . . . . . . . . . Authchips . | . . . . . . . . . . . . . . . . . . . . . . . . . . Time . | . . . . . . . . . . . . . . . . . . . . . . . . . . Total Robot Build Rating . | . . . . . . . . . . . . . . . . . . . . . . . . . . Part Schematics Acquired 29 | . 1 . . . 2 . . . . . 15 . . . . 8 . 2 . . 1 . . . . Parts Built 3 | . . . . . . . . 2 . . . . . . . . . . . . . . . . 1 Authchips . | . . . . . . . . . . . . . . . . . . . . . . . . . . Time 62 | . . . . . . . . 36 . . . . . . . . . . . . . . . . 26 Total Part Build Rating 12 | . . . . . . . . 6 . . . . . . . . . . . . . . . . 6 Part Studies Acquired . | . . . . . . . . . . . . . . . . . . . . . . . . . . Parts Repaired 10 | . . . . . 2 . . 2 . . . . 1 . . . . . . 1 . . . . 4 Time 560 | . . . . . 76 . . 56 . . . . 28 . . . . . . 34 . . . . 366 Parts Recycled . | . . . . . . . . . . . . . . . . . . . . . . . . . . Recycled Matter . | . . . . . . . . . . . . . . . . . . . . . . . . . . Retrieved Matter . | . . . . . . . . . . . . . . . . . . . . . . . . . . Retrieved Components . | . . . . . . . . . . . . . . . . . . . . . . . . . . Parts Scanalyzed 4 | . . . . . . . . 1 . . . . . . . . . 2 . 1 . . . . . Part Schematics Acquired 2 | . . . . . . . . . . . . . . . . . . 2 . . . . . . . Parts Damaged 3 | . . . . . . . . . . . . . . . . . . 2 . 1 . . . . . Bothacking | -11 -10 -10 -10 -9 -8 -7 -7 -7 -7 -7 -7 -6 -6 -6 -6 -6 -5 -5 -5 -5 -5 -5 -5 -5 -4 ------------ Run | Yrd Mat Min Exi Min Mat Fac Was Fac Low Low Zio Pro Fac Low Low Dat Pro Fac Was Fac Ext Cet Arc Hub Fac Used RIF Installer . | . . . . . . . . . . . . . . . . . . . . . . . . . . Robots Hacked . | . . . . . . . . . . . . . . . . . . . . . . . . . . Non-combat . | . . . . . . . . . . . . . . . . . . . . . . . . . . Combat . | . . . . . . . . . . . . . . . . . . . . . . . . . . Robot Hacks Applied . | . . . . . . . . . . . . . . . . . . . . . . . . . . Relay Couplers Released 14 | . . . . . . . . . . . . . 7 . . . . 7 . . . . . . . Machine Destruction 3 | . . . . . . . . . . . . . . . . . . 3 . . . . . . . Programmers 11 | . . . . . . . . . . . . . 7 . . . . 4 . . . . . . . Fabnet Peak Effective % . | . . . . . . . . . . . . . . . . . . . . . . . . . . Robots Rewired 12 | . . . . . . . . . . 1 . . . 2 . . . . . . 9 . . . . Allies Hacked . | . . . . . . . . . . . . . . . . . . . . . . . . . . Hacks Repelled . | . . . . . . . . . . . . . . . . . . . . . . . . . . Allies | -11 -10 -10 -10 -9 -8 -7 -7 -7 -7 -7 -7 -6 -6 -6 -6 -6 -5 -5 -5 -5 -5 -5 -5 -5 -4 -------- Run | Yrd Mat Min Exi Min Mat Fac Was Fac Low Low Zio Pro Fac Low Low Dat Pro Fac Was Fac Ext Cet Arc Hub Fac Total Allies 77 | . . . . 3 . . 20 . . 1 2 . 1 2 . . . . 20 . 23 5 . . . Largest Group 20 | . . . . 3 3 . 20 18 . 1 2 2 1 2 2 1 1 . 20 18 18 20 20 15 . Highest-Rated Group 1070 | . . . . 40 40 . 537 509 . 32 82 82 99 51 45 17 17 . 747 697 684 1070 1070 782 . Highest-Rated Ally 159 | . . . . 16 16 . 35 35 . 32 51 51 99 31 28 17 17 . 50 50 159 159 159 96 . Total Orders 10 | . . . . . . . . . . . . . . . . . . . . 8 . . 1 1 . STAY 2 | . . . . . . . . . . . . . . . . . . . . . . . 1 1 . EXPLORE 6 | . . . . . . . . . . . . . . . . . . . . 6 . . . . . RETURN 2 | . . . . . . . . . . . . . . . . . . . . 2 . . . . . Ally Attacks 780 | . . . . 4 29 . 10 190 . 6 . 10 35 23 2 . . . 12 86 139 28 42 164 . Total Damage 18799 | . . . . 29 323 . 318 4586 . 202 . 229 1823 305 41 . . . 383 2525 2123 455 1205 4252 . Kills 141 | . . . . 2 5 . 2 37 . 2 . 3 20 2 1 . . . 2 17 21 1 5 21 . Allies Corrupted 5 | . . . . . . . . . . . . . . . . . . . . 4 . . . 1 . Allies Melted . | . . . . . . . . . . . . . . . . . . . . . . . . . . Intel | -11 -10 -10 -10 -9 -8 -7 -7 -7 -7 -7 -7 -6 -6 -6 -6 -6 -5 -5 -5 -5 -5 -5 -5 -5 -4 ------- Run | Yrd Mat Min Exi Min Mat Fac Was Fac Low Low Zio Pro Fac Low Low Dat Pro Fac Was Fac Ext Cet Arc Hub Fac Active Infowar (turns) 8795 | . 378 339 . . 590 . . . 923 229 . . 1928 888 661 160 701 . 70 . . . . . 1928 Optics 2720 | . . . . . . . . . . . . . 310 888 661 160 701 . . . . . . . . Sensors 910 | . . . . . . . . . . . . . . . . . . . . . . . . . 910 IFF 1781 | . . . . . . . . . . . . . 1618 163 . . . . . . . . . . . Structural 2459 | . 378 339 . . 590 . . . 923 229 . . . . . . . . . . . . . . . Cloaking 786 | . . . . . . . . . . . . . . . . . . . 70 . . . . . 716 Jamming 139 | . . . . . . . . . . . . . . . . . . . . . . . . . 139 ECM 205 | . . . . . . . . . . . . . . . . . . . . . . . . . 205 Robot Analysis Total . | . . . . . . . . . . . . . . . . . . . . . . . . . . Derelict Logs Recovered 10 | . . 1 . 1 . . . . 2 . 1 1 . 1 1 . 2 . . . . . . . . Drone Launches 6 | . . . . . . . . . . . . . . . . . . . . 6 . . . . . Drone Recoveries 6 | . . . . . . . . . . . . . . . . . . . . 6 . . . . . Exploration | -11 -10 -10 -10 -9 -8 -7 -7 -7 -7 -7 -7 -6 -6 -6 -6 -6 -5 -5 -5 -5 -5 -5 -5 -5 -4 ------------- Run | Yrd Mat Min Exi Min Mat Fac Was Fac Low Low Zio Pro Fac Low Low Dat Pro Fac Was Fac Ext Cet Arc Hub Fac Turns Passed 24327 | 98 620 829 636 1124 1179 36 638 1612 951 905 1358 551 2382 888 661 160 859 492 962 1173 1723 505 637 929 2419 Spaces Moved 11613 | 51 287 320 261 452 480 22 373 892 590 477 859 348 1090 376 237 94 327 179 504 610 816 254 290 431 993 Core 3 | 3 . . . . . . . . . . . . . . . . . . . . . . . . . Treads 11610 | 48 287 320 261 452 480 22 373 892 590 477 859 348 1090 376 237 94 327 179 504 610 816 254 290 431 993 Legs . | . . . . . . . . . . . . . . . . . . . . . . . . . . Wheels . | . . . . . . . . . . . . . . . . . . . . . . . . . . Hover . | . . . . . . . . . . . . . . . . . . . . . . . . . . Flight . | . . . . . . . . . . . . . . . . . . . . . . . . . . Fastest Speed 50 | 50 160 240 240 240 160 160 160 150 150 155 155 155 155 160 160 160 240 162 160 166 160 160 160 160 160 Average Speed 174 | 153 188 240 240 240 181 160 160 158 150 155 155 155 167 193 239 165 240 185 164 166 165 160 160 160 164 Slowest Speed 242 | 160 240 240 240 240 240 160 160 160 155 155 155 155 240 240 240 240 240 242 166 166 170 240 160 160 240 Overloaded Moves . | . . . . . . . . . . . . . . . . . . . . . . . . . . Propulsion Burnouts . | . . . . . . . . . . . . . . . . . . . . . . . . . . Robots Hopped . | . . . . . . . . . . . . . . . . . . . . . . . . . . Potential Cave-ins 5 | . . . . . . . . . . . . . . . . . . . . . . . . 2 3 Cave-ins Triggered . | . . . . . . . . . . . . . . . . . . . . . . . . . . Exploration Rate (%) 53 | 3 41 62 60 66 31 . 94 30 70 64 81 62 19 51 51 74 65 8 97 20 79 64 88 41 28 Regions Visited 25 Branch Regions 15 Pre-discovered Areas 3 | . . 1 1 . . . . . . . . . . . . 1 . . . . . . . . . Known Exits Taken 4 | . . . . . . . . 1 1 . . . 1 . . . 1 . . . . . . . . Unknown Exits Taken 17 | 1 1 1 1 1 1 . . . . 1 1 1 . 1 1 1 . . . 1 1 1 1 1 . Scrap Searched 29 | . . 1 . 2 . . . . 9 2 5 . . . 8 . 2 . . . . . . . . Spaces Dug 71 | . . . . . . . . . . . . . 13 . . . . . . 3 . . . . 55 Terrain Destroyed 988 | . 5 11 . 23 . . 1 17 38 65 . 26 190 4 1 . 6 67 2 79 65 . 13 159 216 Melee . | . . . . . . . . . . . . . . . . . . . . . . . . . . Projectile 107 | . . . . . . . 1 . . 2 . . 9 4 . . . 6 2 12 12 . 12 4 43 AOE 880 | . 5 11 . 23 . . . 17 38 63 . 26 181 . . . 6 61 . 67 53 . 1 155 173 Terrain Rammed . | . . . . . . . . . . . . . . . . . . . . . . . . . . Walls Destroyed . | . . . . . . . . . . . . . . . . . . . . . . . . . . Machines Disabled . | . . . . . . . . . . . . . . . . . . . . . . . . . . Actions | -11 -10 -10 -10 -9 -8 -7 -7 -7 -7 -7 -7 -6 -6 -6 -6 -6 -5 -5 -5 -5 -5 -5 -5 -5 -4 --------- Run | Yrd Mat Min Exi Min Mat Fac Was Fac Low Low Zio Pro Fac Low Low Dat Pro Fac Was Fac Ext Cet Arc Hub Fac Total 14190 | 62 327 349 266 477 651 24 414 1012 614 564 886 353 1409 480 316 99 362 261 633 702 1096 339 399 569 1526 Wait 845 | . . 1 . . 27 . . 49 . 2 12 1 91 33 57 . . 12 62 20 121 50 31 16 260 Move 11590 | 50 286 319 260 451 479 22 372 891 589 476 858 347 1089 375 236 93 326 179 503 609 815 253 289 430 993 Hop . | . . . . . . . . . . . . . . . . . . . . . . . . . . Pick Up 179 | 3 16 3 . 5 22 1 6 4 2 4 4 . 24 5 2 . 2 3 10 8 7 7 2 9 30 Fast Attach 131 | 6 1 . . . 4 . 5 7 2 2 3 . 17 3 3 3 2 7 10 5 4 5 13 13 16 Attach 94 | . . . . 2 6 1 3 . 1 2 . . 19 6 . . 1 2 6 3 4 . 2 5 31 Detach 29 | . . . . . . . 2 . . . . . 7 2 . . . 1 2 1 . . . 3 11 Swap 118 | . 1 3 . 2 12 . 4 8 2 1 1 . 11 2 4 . 2 6 5 7 8 3 . 14 22 Drop 232 | . 1 3 . 3 20 . 18 12 . 8 7 . 26 2 6 3 3 6 24 11 11 10 12 23 23 Fire 842 | 3 22 17 6 11 81 . 3 36 18 44 1 5 123 42 8 . 26 44 8 37 59 11 50 54 133 Melee . | . . . . . . . . . . . . . . . . . . . . . . . . . . Ram . | . . . . . . . . . . . . . . . . . . . . . . . . . . Kick . | . . . . . . . . . . . . . . . . . . . . . . . . . . Crush 26 | . . 3 . 3 . . . 5 . . . . 2 . . . . 1 . 1 2 . . 2 7 Escape Stasis . | . . . . . . . . . . . . . . . . . . . . . . . . . . Rewire 104 | . . . . . . . 1 . . 25 . . . 10 . . . . 3 . 65 . . . . Trap . | . . . . . . . . . . . . . . . . . . . . . . . . . . Miscellaneous . | . . . . . . . . . . . . . . . . . . . . . . . . . . Route ------- -11/Scrapyard -10/Materials (discovered 2 exits: [*Min x2]) -10/Mines (discovered 3 exits: [*Mat] / *Exi / [Sub]) -10/Exiles -9/Mines (discovered 2 exits: *Mat x2) -8/Materials -7/Factory -7/Waste -7/Factory (discovered 3 exits: *Sto / *Low x2) -7/Lower Caves -7/Lower Caves (discovered 2 exits: *Fac / [*Zio]) -7/Zion -6/Proximity Caves -6/Factory (discovered 3 exits: Fac / *Low x2) -6/Lower Caves -6/Lower Caves (discovered 2 exits: *Fac / *Dat) -6/Data Miner -5/Proximity Caves -5/Factory -5/Waste -5/Factory -5/Extension (discovered 3 exits: *Fac x2 / *Cet) -5/Cetus (discovered 2 exits: *Fac / [*Arc]) -5/Archives (discovered 3 exits: *Fac / *Hub x2) -5/Hub_04(d) (discovered 2 exits: *Fac x2) -4/Factory (discovered 1 exit: *Res) History --------- Turn | Location | Event 49 | -11/Scrapyard | Discovered new exit (range 15) 99 | -11/Scrapyard | Entered Materials 196 | -10/Materials | Discovered new exit (range 14) 309 | -10/Materials | Build established: Mutant 626 | -10/Materials | Discovered new exit (range 9) 674 | -10/Materials | Central database locked down 699 | -10/Materials | Derelicts attacked the area 719 | -10/Materials | Entered Mines 819 | -10/Mines | Met a Derelict bent on vengeance 830 | -10/Mines | Discovered new exit (range 9) 1008 | -10/Mines | Found a Scrap Suit stashed away for nefarious purposes 1146 | -10/Mines | Discovered new exit (range 11) 1153 | -10/Mines | Learned location of Mines (-9) 1436 | -10/Mines | Deemed a non-threat by the Exiles lab entrance 1438 | -10/Mines | Discovered new exit (range 5) 1548 | -10/Mines | Entered Exiles 1606 | -10/Exiles | Met 8R-AWN 1647 | -10/Exiles | Met EX-HEX 1719 | -10/Exiles | Met EX-BIN 1757 | -10/Exiles | Aligned with FarCom system 1760 | -10/Exiles | Given EX-Vault access code 1817 | -10/Exiles | Opened EX-Vault 1875 | -10/Exiles | Warned to stay clear of 0b10 Research branches 1942 | -10/Exiles | Met EX-DEC 1959 | -10/Exiles | Learned location of Zion (-7) 2140 | -10/Exiles | Attacked by the Exiles 2156 | -10/Exiles | Discovered new exit (range 14) 2184 | -10/Exiles | Entered Mines 2225 | -9/Mines | Assisted by bots powering up and referring to "LRC-V3" 2308 | -9/Mines | Discovered new exit (range 6) 2612 | -9/Mines | Learned Materials garrison access intel 2904 | -9/Mines | Met a Derelict who couldn't figure out how to use a Trap Extractor 2922 | -9/Mines | Found a hidden stash of uninstalled traps 3041 | -9/Mines | Discovered new exit (range 9) 3308 | -9/Mines | Entered Materials 3308 | -8/Materials | Accompanied by 3 allies 3308 | -8/Materials | Evolved 4 slots: Propulsion x1, Utility x3 3309 | -8/Materials | Loaded intel: 1 garrison access location 3822 | -8/Materials | Discovered new exit (range 11) 4142 | -8/Materials | Repaired Lgt. Angular Momentum Engine? 4273 | -8/Materials | Repaired Lgt. Treads 4394 | -8/Materials | Central database locked down 4487 | -8/Materials | Entered Factory 4487 | -7/Factory | Evolved 2 slots: Propulsion x1, Weapon x1 4523 | -7/Factory | Sucked down chute 4523 | -7/Factory | Entered Waste 4524 | -7/Waste | Joined by Warlord forces that had cleared the area 4643 | -7/Waste | Found Damper Plating 4793 | -7/Waste | A Compactor rumbled back to life 4793 | -7/Waste | Spotted C-40 Crusher 4796 | -7/Waste | Allies destroyed C-40 Crusher 4827 | -7/Waste | Lost 3 allies 4847 | -7/Waste | Discovered new exit (range 13) 4894 | -7/Waste | Build established: Scavenger-Tank 5161 | -7/Waste | Entered Factory 5161 | -7/Factory | Accompanied by 18 allies 5341 | -7/Factory | Lost 6 allies 6125 | -7/Factory | Repaired Hvy. Treads 6172 | -7/Factory | Discovered new exit (range 4) 6306 | -7/Factory | Identified exit to Storage 6306 | -7/Factory | Lost 3 allies 6370 | -7/Factory | Garrison activated, responded to threat 6413 | -7/Factory | Repaired Hvy. Treads 6438 | -7/Factory | Lost 6 allies 6480 | -7/Factory | Identified exit to Lower Caves 6500 | -7/Factory | Fabricated Adv. Treads (x2) 6761 | -7/Factory | First assault squad dispatched 6773 | -7/Factory | Entered Lower Caves 6916 | -7/Lower Caves | Identified exit to Lower Caves 7056 | -7/Lower Caves | Entered a destroyed Warlord outpost 7724 | -7/Lower Caves | Entered another Lower Caves area 7738 | -7/Lower Caves | Discovered new exit (range 9) 7743 | -7/Lower Caves | Encountered a Warlord checkpoint 7894 | -7/Lower Caves | Found Prototype Device 7954 | -7/Lower Caves | Identified Heart of Steel 7990 | -7/Lower Caves | Attracted the attention of an 0b10 outpost 8251 | -7/Lower Caves | Entered a destroyed Warlord outpost 8252 | -7/Lower Caves | Build established: Tank 8411 | -7/Lower Caves | Discovered new exit (range 12) 8629 | -7/Lower Caves | Entered Zion 8791 | -7/Zion | Received a visual enhancement algorithm 8818 | -7/Zion | Discovered new exit (range 12) 8879 | -7/Zion | System corruption cleaned by Quarantine Array 9136 | -7/Zion | Found Prototype Processor 9136 | -7/Zion | Identified Exp. Target Analyzer 9158 | -7/Zion | Found Prototype Processor 9161 | -7/Zion | Found Prototype Processor 9165 | -7/Zion | Found Prototype Processor 9200 | -7/Zion | Learned Factory emergency access door positions 9229 | -7/Zion | Given the Hacking Drone Bay 9230 | -7/Zion | Found Prototype Device 9268 | -7/Zion | Learned location of 1 exit from Factory 9768 | -7/Zion | Gained Derelict followers 9987 | -7/Zion | Entered Proximity Caves 9987 | -6/Proximity Caves | Accompanied by 2 allies 9991 | -6/Proximity Caves | Attracted the attention of an 0b10 checkpoint 10077 | -6/Proximity Caves | Spotter reported a threat 10227 | -6/Proximity Caves | Learned 8 Factory zone layouts 10520 | -6/Proximity Caves | Discovered new exit (range 13) 10538 | -6/Proximity Caves | Entered Factory 10538 | -6/Factory | Accompanied by 1 ally 10538 | -6/Factory | Evolved 2 slots: Utility x2 10539 | -6/Factory | Identified exit to Lower Caves 10541 | -6/Factory | Identified exit to Factory 11284 | -6/Factory | Repaired Hvy. Treads? 11700 | -6/Factory | Heart of Steel transformed into Warbot 12049 | -6/Factory | Build established: Scavenger-Tank 12250 | -6/Factory | Found Prototype Launcher 12250 | -6/Factory | Identified Rocket Array 12288 | -6/Factory | First assault squad dispatched 12561 | -6/Factory | Cargo convoy interrupted 12589 | -6/Factory | Destroyed 9 combat bots 12596 | -6/Factory | Found Prototype Device 12596 | -6/Factory | Identified Exp. Shield Generator 12605 | -6/Factory | Identified Exp. Targeting Computer 12607 | -6/Factory | Identified Exp. Armor Integrity Analyzer 12610 | -6/Factory | Identified Spectral Analyzer 12673 | -6/Factory | Found Exp. Shield Generator 12711 | -6/Factory | Found Exp. Shield Generator 12874 | -6/Factory | Destroyed 7 combat bots 12914 | -6/Factory | Lost 3 parts (1n2w) 12920 | -6/Factory | Entered Lower Caves 13302 | -6/Lower Caves | Attacked by a faux Warlord 13390 | -6/Lower Caves | Build established: Gunner 13474 | -6/Lower Caves | Core integrity fell below 50% 13655 | -6/Lower Caves | Learned Factory stockpile data 13685 | -6/Lower Caves | Attracted the attention of an 0b10 checkpoint 13744 | -6/Lower Caves | Discovered new exit (range 16) 13808 | -6/Lower Caves | Entered another Lower Caves area 13808 | -6/Lower Caves | Accompanied by 2 allies 13856 | -6/Lower Caves | Discovered exit to Factory (range 6) 14157 | -6/Lower Caves | Learned Factory stockpile data 14401 | -6/Lower Caves | Discovered new exit (range 22) 14469 | -6/Lower Caves | Entered Data Miner 14469 | -6/Data Miner | Accompanied by 1 ally 14471 | -6/Data Miner | Discovered new exit (range 6) 14489 | -6/Data Miner | Met Data Miner 14529 | -6/Data Miner | Learned location of Section 7 (-3) 14529 | -6/Data Miner | Acquired the access code to Warlord's prototype stash 14557 | -6/Data Miner | Received God Mode back door access code from Data Miner 14629 | -6/Data Miner | Entered Proximity Caves 14629 | -5/Proximity Caves | Accompanied by 1 ally 15331 | -5/Proximity Caves | System corruption reached 10% 15472 | -5/Proximity Caves | Discovered exit to Factory (range 5) 15486 | -5/Proximity Caves | Learned Factory non-interactive machine intel 15488 | -5/Proximity Caves | Entered Factory 15488 | -5/Factory | Evolved 2 slots: Propulsion x1, Utility x1 15490 | -5/Factory | Loaded intel: 228 non-interactive machine locations 15581 | -5/Factory | Garrison activated, responded to threat 15606 | -5/Factory | Incoming assault squad redirected 15615 | -5/Factory | Incoming assault squad redirected 15835 | -5/Factory | Spotted B-75 Beast 15845 | -5/Factory | Destroyed B-75 Beast 15880 | -5/Factory | Found Prototype Launcher 15880 | -5/Factory | Identified Mni. Smartbomb Launcher 15915 | -5/Factory | Incoming assault squad redirected 15925 | -5/Factory | Found Mni. Smartbomb Launcher 15932 | -5/Factory | Destroyed 8 combat bots 15980 | -5/Factory | Sucked down chute 15980 | -5/Factory | Entered Waste 15981 | -5/Waste | Joined by Warlord forces that had cleared the area 16028 | -5/Waste | Found Broken Gamma Bomb Array 16245 | -5/Waste | Found Damper Plating 16307 | -5/Waste | Discovered new exit (range 12) 16320 | -5/Waste | A Compactor rumbled back to life 16320 | -5/Waste | Spotted C-40 Crusher 16322 | -5/Waste | Allies destroyed C-40 Crusher 16847 | -5/Waste | Build established: Tank 16886 | -5/Waste | Found Fusion Bomb Launcher 16942 | -5/Waste | Entered Factory 16942 | -5/Factory | Accompanied by 18 allies 17036 | -5/Factory | Repaired Fusion Bomb Launcher? 17063 | -5/Factory | Lost 3 allies 17542 | -5/Factory | First assault squad dispatched 17731 | -5/Factory | Lost 4 allies 17796 | -5/Factory | Lost 3 allies 17871 | -5/Factory | Incoming assault squad redirected 18085 | -5/Factory | Destroyed 7 combat bots 18108 | -5/Factory | Discovered new exit (range 6) 18115 | -5/Factory | Entered Extension 18292 | -5/Extension | Rescued a captive Derelict 18293 | -5/Extension | Rescued a captive Derelict 18415 | -5/Extension | Disrupted transfer network 18740 | -5/Extension | Rescued a captive Derelict 18802 | -5/Extension | Rescued a captive Derelict 19105 | -5/Extension | Spotted B-75 Beast 19112 | -5/Extension | Spotted B-75 Beast 19119 | -5/Extension | Allies destroyed B-75 Beast 19127 | -5/Extension | Destroyed B-75 Beast 19154 | -5/Extension | Discovered new exit (range 12) 19256 | -5/Extension | Build established: Scavenger-Tank 19314 | -5/Extension | Rescued a captive Derelict 19381 | -5/Extension | Rescued a captive Derelict 19382 | -5/Extension | Rescued a captive Derelict 19675 | -5/Extension | Rescued A7 19689 | -5/Extension | Rescued a captive Derelict 19713 | -5/Extension | Rescued a captive Derelict 19715 | -5/Extension | Rescued a captive Derelict 19717 | -5/Extension | Rescued a captive Derelict 19733 | -5/Extension | Rescued a captive Derelict 19734 | -5/Extension | Rescued a captive Derelict 19779 | -5/Extension | Discovered new exit (range 11) 19781 | -5/Extension | Discovered new exit (range 7) 19838 | -5/Extension | Entered Cetus 19838 | -5/Cetus | Accompanied by 18 allies (A7) 19843 | -5/Cetus | Acquired a Cetus Manufacturing Module code from A7 19859 | -5/Cetus | Spotted Cetus Guard 19859 | -5/Cetus | Spotted Cetus Guard 19862 | -5/Cetus | Spotted Cetus Guard 19862 | -5/Cetus | Spotted Cetus Guard 19871 | -5/Cetus | Allies destroyed Cetus Guard 19876 | -5/Cetus | Destroyed Cetus Guard 19877 | -5/Cetus | Destroyed Cetus Guard 19885 | -5/Cetus | Destroyed Cetus Guard 19905 | -5/Cetus | Build established: Commander-Tank 19974 | -5/Cetus | Discovered new exit (range 16) 20001 | -5/Cetus | Spotted Cetus Guard 20001 | -5/Cetus | Spotted Cetus Guard 20005 | -5/Cetus | Spotted Cetus Guard 20005 | -5/Cetus | Spotted Cetus Guard 20009 | -5/Cetus | Destroyed Cetus Guard 20011 | -5/Cetus | Destroyed Cetus Guard 20011 | -5/Cetus | Destroyed Cetus Guard 20012 | -5/Cetus | Destroyed Cetus Guard 20018 | -5/Cetus | Discovered new exit (range 15) 20026 | -5/Cetus | Met Revision 17 20036 | -5/Cetus | System corruption reached 10% 20143 | -5/Cetus | Escorted A7 to Cetus Mainframe 20155 | -5/Cetus | Started Cetus Manufacturing Module 20180 | -5/Cetus | Manufactured an Enhanced Grunt 20205 | -5/Cetus | Manufactured an Enhanced Grunt 20230 | -5/Cetus | Manufactured an Enhanced Grunt 20255 | -5/Cetus | Manufactured an Enhanced Grunt 20280 | -5/Cetus | Manufactured an Enhanced Grunt 20343 | -5/Cetus | Entered Archives 20343 | -5/Archives | Accompanied by 20 allies (A7) 20348 | -5/Archives | Received a hacking code to weaken MAIN.C 20406 | -5/Archives | Lost 4 allies 20426 | -5/Archives | Discovered new exit (range 14) 20492 | -5/Archives | Discovered new exit (range 15) 20588 | -5/Archives | Discovered new exit (range 16) 20980 | -5/Archives | Entered Hub_04(d) 20980 | -5/Hub_04(d) | Accompanied by 15 allies 21076 | -5/Hub_04(d) | Garrison activated, responded to threat 21286 | -5/Hub_04(d) | Incoming investigation squad redirected 21306 | -5/Hub_04(d) | Discovered new exit (range 7) 21505 | -5/Hub_04(d) | Network Hub disabled 21514 | -5/Hub_04(d) | Spotted Lightning 21515 | -5/Hub_04(d) | Spotted Lightning 21518 | -5/Hub_04(d) | Spotted Lightning 21523 | -5/Hub_04(d) | Destroyed Lightning 21548 | -5/Hub_04(d) | Destroyed Lightning 21554 | -5/Hub_04(d) | Lost 3 allies 21566 | -5/Hub_04(d) | Destroyed Lightning 21574 | -5/Hub_04(d) | Found Prototype Device 21574 | -5/Hub_04(d) | Identified Exp. Phase Shifter 21584 | -5/Hub_04(d) | Identified Hacking Drone Bay 21591 | -5/Hub_04(d) | Found Prototype Energy Cannon 21591 | -5/Hub_04(d) | Identified EMDS 21597 | -5/Hub_04(d) | Found Prototype Device 21597 | -5/Hub_04(d) | Identified Exp. EM Shield 21786 | -5/Hub_04(d) | Build established: Scavenger-Tank 21839 | -5/Hub_04(d) | Incoming investigation squad redirected 21858 | -5/Hub_04(d) | Discovered new exit (range 3) 21869 | -5/Hub_04(d) | Spotted Lightning 21869 | -5/Hub_04(d) | Spotted Lightning 21870 | -5/Hub_04(d) | Spotted Lightning 21880 | -5/Hub_04(d) | First assault squad dispatched 21880 | -5/Hub_04(d) | Garrison activated, responded to threat 21909 | -5/Hub_04(d) | Entered Factory 21909 | -4/Factory | Evolved 2 slots: Power x1, Weapon x1 22322 | -4/Factory | Incoming investigation squad redirected 22364 | -4/Factory | Repaired Broken Centrium Heavy Treads 22409 | -4/Factory | First assault squad dispatched 22697 | -4/Factory | Destroyed 9 combat bots 22713 | -4/Factory | Lost 6 parts (1p1n2u2w) 23272 | -4/Factory | Found Prototype Processor 23272 | -4/Factory | Identified Exp. Signal Interpreter 23305 | -4/Factory | Discovered new exit (range 15) 23348 | -4/Factory | Identified exit to Research 23409 | -4/Factory | Fabricated Hvy. Treads (x1) 23593 | -4/Factory | Repaired Centrium Heavy Treads 23731 | -4/Factory | Repaired Broken Exp. Shield Generator 23861 | -4/Factory | Lost 3 parts (1p1u1w) 24224 | -4/Factory | Repaired Centrium Heavy Treads? 24328 | -4/Factory | Self-destructed Last Messages --------------- 24323_ Backup Propulsion III tumbles out of repair station. 24323_ Backup Power III tumbles out of repair station. 24323_ Backup Propulsion III tumbles out of repair station. 24323_ Backup Laser III tumbles out of repair station. 24323_ Chain reaction triggered in Corrupted Backup Power III. 24324_ P-70 Sage resets G-67 Veteran, system corruption cleaned. 24325_ The unstable cave ceiling collapses. 24325_ Com. Battery destroyed. 24325_ System corrupted by crushing effect (+1). 24325_ P-70 Sage resets G-73 Enforcer, system corruption cleaned. 24326_ Chain reaction triggered in Corrupted Backup Power III. 24326_ G-67 Veteran destroyed. 24326_ G-73 Enforcer destroyed. 24326_ Backup Power III tumbles out of repair station. 24326_ Backup Propulsion III tumbles out of repair station. 24327_ P-70 Sage resets G-67 Veteran, system corruption cleaned. 24327_ P-70 Sage resets M-36 Artificer, system corruption cleaned. 24328_ Critical hit (Smash). 24328_ Lgt. Antimatter Reactor destroyed. 24328_ System corrupted by crushing effect (+2). Map ----- +----------------------------------------------------+ | ?????????????????????????????????????????????????? | | ?????????????????????????????????????????????????? | | ?????????????????????????????????????????????????? | | ?????????????????????????????????????????????????? | | #############????????????????????????????????????? | | # #????????????????????????????????????? | | # """ """ !#????????????????????????????????????? | | # """ """ #????????????????????????????????????? | | # """ """ #????????????????????????????????????? | | # !#???????????#????????????????????????? | | # """ #??????????? ?? ?????????????????????? | | # """ #??????????? ?# ???????????????????? | | # """ #??????# ### # "??????????????????? | | # [[ %##????## "??????????????????? | | # """ [ [##????# ??????????????????? | | # """ ####### # # ??????????????????? | | # """ ## ""T"????????????????? | | # ## """" % % """?????????????????? | | #########+#### """" g ??????????????????? | | # % # """"m # #??????????????????? | | # # """ #??????????????????? | | # = + p #??????????????????? | | # = # g %= ???????????????????? | | # * C + uu [ ????????????????????? | | # ######## " [%b #?????????????????????? | | # ###?#### " = @ #?????????????????????? | | # #??????# b"=* ##?????????????????????? | | # #??????# [= ;#######???????????????? | | # #???############ # #???????????????? | | # #?? =#?# ## #???????????????? | | # #?? #?####?# #???????????????? | | # #?! #??????# #???????????????? | | # #? #??????# #???????????????? | | # # ! #??????# #???????????????? | | # # #??????# #???????????????? | | + + ! #??????# #???????????????? | | # # #??????# #???????????????? | | # # #??????# #???????????????? | | # #? #??????# #???????????????? | | # #? #??????# #???????????????? | | # #?? #??????# #???????????????? | | # #######################+#######????????????? | | # # + !! #????????????? | | # + """ """ """ #####%##### #????????????? | | # # """ """ """ #???#=#???# #????????????? | | # # """ """ """ "" #???#!#???# #????????????? | | # # G" #???# #???# #????????????? | | # A# "" #???# #???# #????????????? | | # A # ! / #???# #???# #????????????? | | # ###################???# #?###+###??????????? | +----------------------------------------------------+ Best States ------------- Heat Dissipation 116 Energy Generation 53 Energy Capacity 600 Matter Stores 325 Matter Capacity 600 Sight Range 24 Robot Scan Range 16 Terrain Scan Density 10 ECM Strength 1 Jamming Range 16 Cloak Strength 4 Power Amplification 20 Base Temperature (-) 200 Armor Coverage 1600 Resistance: EM 90 Utility Shielding 33 Weapon Shielding 66 Phase Shifting 20 Evasion (%) 60 Targeting Accuracy 12 Target Analysis 10 Recoil Reduction 5 Energy Filtering 30 Particle Charging 25 Offensive Hacking 14 Defensive Hacking 10 Item Schematics ----------------- Huge Storage Unit | -10/Materials | Hacked Cryofiber Web | -8/Materials | Hacked Adv. Treads | -8/Materials | Hacked Weapon Cycler | -7/Zion | Archive Imp. Trap Scanner | -7/Zion | Archive Variable Charge Gun | -7/Zion | Archive Jamming Amplifier | -7/Zion | Archive Imp. Cooling System | -7/Zion | Archive Adv. Signal Interpreter | -7/Zion | Archive Component Analysis Suite | -7/Zion | Archive Powered Hammer | -7/Zion | Archive Wave Gun | -7/Zion | Archive Lyr. Light Armor Plating | -7/Zion | Archive Proton Cannon | -7/Zion | Archive Imp. Particle Charger | -7/Zion | Archive Transmission Jammer | -7/Zion | Archive Hvy. Laser | -7/Zion | Archive Flexi-carbon Leg | -7/Zion | Archive Combat Drone Bay | -6/Data Miner | Free Lgt. Regenerative Plating | -6/Data Miner | Free Cld. Gravmag System | -6/Data Miner | Free Imp. Matter Compressor | -6/Data Miner | Free Enh. Coil Gun | -6/Data Miner | Free Myomer Leg | -6/Data Miner | Free Quantum Capacitor | -6/Data Miner | Free Adv. Datajack | -6/Data Miner | Free Hvy. Treads | -5/Factory | Scanalyzed Imp. Matter Neutralizer | -5/Factory | Scanalyzed Hyp. Gauss Cannon | -5/Extension | Hacked Robot Schematics ------------------ M-28 Smith | -7/Zion | Archive C-57 Dissector | -7/Zion | Archive W-25 Informer | -7/Zion | Archive R-06 Scavenger | -7/Zion | Archive L-41 Fighter | -6/Data Miner | Free M-22 Extractor | -6/Data Miner | Free B-48 Gladiator | -6/Data Miner | Free Fabricated ------------ Adv. Treads | x2 | -7/Factory Hvy. Treads | x1 | -4/Factory Repaired ---------- Lgt. Angular Momentum Engine | 3% | -8/Materials Lgt. Treads | 30% | -8/Materials Hvy. Treads | 22% | -7/Factory Hvy. Treads | 46% | -7/Factory Hvy. Treads | 44% | -6/Factory Fusion Bomb Launcher | 14% | -5/Factory Centrium Heavy Treads | 26% | -4/Factory | Broken Centrium Heavy Treads | 7% | -4/Factory Exp. Shield Generator | 11% | -4/Factory | Broken Centrium Heavy Treads | 9% | -4/Factory Studied --------- None Alien Tech Used ----------------- None Achievements -------------- None Challenges ------------ None Game ------ Seed VisualShadingInsulator Manual? 0 Play Time 03:31:01 Cumulative 326.2 hours Start 2025.11.23 @ 14:41:43 End 2025.11.23 @ 19:35:38 Sessions 1 Manual Loads 0 Difficulty Rogue Special Mode None Game No. 340 Rogue 336 Adventurer 3 Explorer 1 Win Type - Total 2 Types 2/0/0/0/0/0/0/0/0/0 Lore% 82 Gallery% 78 Achievement% 63 Wizard Run 0 Options --------- Layout 0 ASCII 0 Keyboard 0 Movement Mouse Keybinds 0 Fullscreen 2 Font 18/SmallcapsGlow Map View 76x50 Zoom Use 0% Tactical HUD 1 Map Filters NONE Filters NONE Steam 1 RUN: d6d6cff6-6d46-4a7e-8180-3767187a8092